bitfinex-derivatives/quotes_BTCF0:USTF0_20250514
["timestamp","ask_amount","ask_price","bid_price","bid_amount"]
[1747185556543,1.49666414,103980.0,103970.0,0.26301527]
[1747185556846,1.49666414,103980.0,103970.0,0.07066177]
[1747185557049,1.59125328,103980.0,103970.0,0.00696177]
[1747185557546,1.49666414,103980.0,103970.0,0.00696177]
[1747185557743,1.59125328,103980.0,103970.0,0.00696177]
[1747185558142,0.1923535,103970.0,103960.0,0.34079238]
[1747185558444,0.99914264,103970.0,103960.0,0.34079238]
[1747185559154,1.99389714,103970.0,103950.0,0.24534704]
[1747185559335,0.96934114,103960.0,103950.0,0.24534704]
[1747185559748,0.1923905,103950.0,103940.0,0.29611776]
[1747185560050,1.09576878,103950.0,103940.0,0.29611776]
[1747185560352,1.25776878,103950.0,103940.0,0.29611776]
[1747185561345,1.25776878,103950.0,103940.0,0.00401]
[1747185562044,1.25876878,103950.0,103940.0,0.00401]
[1747185562237,1.16417964,103950.0,103940.0,0.00401]
[1747185563349,1.16517964,103950.0,103940.0,0.00401]
[1747185563744,1.16517964,103950.0,103940.0,0.03421]
[1747185565342,0.192409,103940.0,103930.0,0.32140084]
[1747185565642,0.96991814,103940.0,103930.0,0.35160084]
[1747185565837,0.1924461,103920.0,103910.0,0.00192465]
[1747185566044,1.26815524,103920.0,103910.0,0.06472465]
[1747185566246,0.1924646,103910.0,103900.0,0.1305]
[1747185566450,0.1924831,103900.0,103890.0,0.00096251]
[1747185566648,0.1925016,103890.0,103880.0,0.03194394]
[1747185566845,0.1925202,103880.0,103870.0,0.00192539]
[1747185567038,0.68030934,103880.0,103870.0,0.00192539]
[1747185567243,0.93986934,103880.0,103870.0,0.19446409]
[1747185567447,0.8766802,103880.0,103870.0,0.19446409]
[1747185568152,1.0386802,103880.0,103870.0,0.19446409]
[1747185568448,1.0406802,103880.0,103870.0,0.19446409]
[1747185568952,1.05023267,103880.0,103870.0,0.19446409]
[1747185569544,1.05023267,103880.0,103870.0,0.22496409]
[1747185570148,1.05323267,103880.0,103870.0,0.22496409]
[1747185570349,1.14882181,103880.0,103870.0,0.03242539]
[1747185570550,1.14882181,103880.0,103870.0,0.22496409]
[1747185570750,1.05423267,103880.0,103870.0,0.22496409]
[1747185570943,1.14882181,103880.0,103870.0,0.22496409]
[1747185571151,1.05423267,103880.0,103870.0,0.22496409]
[1747185571452,1.05423267,103880.0,103870.0,0.25666409]
[1747185572053,1.05431267,103880.0,103870.0,0.25666409]
[1747185572246,0.89231267,103880.0,103870.0,0.25666409]
[1747185574462,0.98690181,103880.0,103870.0,0.25666409]
[1747185575354,0.89231267,103880.0,103870.0,0.25666409]
[1747185575548,0.89793338,103880.0,103870.0,0.25666409]
[1747185576256,0.41437318,103880.0,103870.0,0.35125323]
[1747185576459,0.01162071,103880.0,103870.0,0.35125323]
[1747185576757,0.006,103880.0,103870.0,0.35125323]
[1747185577150,0.006,103880.0,103870.0,0.51325323]
[1747185577554,0.006,103880.0,103870.0,0.87405323]
[1747185577757,0.006,103880.0,103870.0,1.22032122]
[1747185578152,0.006,103880.0,103870.0,2.72032122]
[1747185579054,0.5593202,103880.0,103870.0,1.91866409]
[1747185579660,0.71690934,103880.0,103870.0,0.41866409]
[1747185580046,0.71690934,103880.0,103870.0,0.22612539]
[1747185580252,0.87890934,103880.0,103870.0,0.06412539]
[1747185580459,1.13830934,103880.0,103870.0,0.25666409]
[1747185581751,1.14393005,103880.0,103870.0,0.25666409]
[1747185582059,1.04934091,103880.0,103870.0,0.25666409]
[1747185582261,1.01814091,103880.0,103870.0,0.25666409]
[1747185582861,1.0125202,103880.0,103870.0,0.25666409]
[1747185583058,0.7531202,103880.0,103870.0,0.35125323]
[1747185583362,0.5911202,103880.0,103870.0,0.35125323]
[1747185584057,0.5911202,103880.0,103870.0,0.25666409]
[1747185585859,0.59674091,103880.0,103870.0,0.25666409]
[1747185586866,0.0378,103880.0,103870.0,0.71205323]
[1747185587764,0.04342071,103880.0,103870.0,0.71205323]
[1747185587962,0.01162071,103880.0,103870.0,0.61746409]
[1747185588163,0.01162071,103880.0,103870.0,0.80832122]
[1747185588465,0.01162071,103880.0,103870.0,0.44752122]
[1747185588769,0.006,103880.0,103870.0,0.80832122]
[1747185589468,0.006,103880.0,103870.0,2.30832122]
[1747185590053,0.006,103880.0,103870.0,2.47032122]
[1747185591569,0.006,103880.0,103870.0,2.88282122]
[1747185592257,0.006,103880.0,103870.0,3.14226122]
[1747185592859,0.0368,103880.0,103870.0,3.14226122]
[1747185593664,0.0368,103880.0,103870.0,3.04599323]
[1747185593967,0.04242071,103880.0,103870.0,3.04599323]
[1747185594168,0.03376047,103880.0,103870.0,3.04599323]
[1747185594960,0.02813976,103880.0,103870.0,3.04599323]
[1747185595570,0.38893976,103880.0,103870.0,2.68511323]
[1747185595764,0.02813976,103880.0,103870.0,2.68511323]
[1747185595966,0.22065996,103880.0,103870.0,2.68511323]
[1747185596168,0.61295996,103880.0,103870.0,2.16916409]
[1747185596369,0.61295996,103880.0,103870.0,2.42852409]
[1747185597573,0.61295996,103880.0,103870.0,2.01602409]
[1747185597774,0.61295996,103880.0,103870.0,1.75666409]
[1747185598070,0.78058067,103880.0,103870.0,1.69446409]
[1747185598270,0.87516981,103880.0,103870.0,1.69446409]
[1747185598576,0.87516981,103880.0,103870.0,0.19446409]
[1747185598773,0.78058067,103880.0,103870.0,0.19446409]
[1747185599072,0.61295996,103880.0,103870.0,1.69446409]
[1747185599375,0.61295996,103880.0,103870.0,1.72456409]
[1747185599566,0.61295996,103880.0,103870.0,1.75686409]
[1747185600475,0.61295996,103880.0,103870.0,1.69446409]
[1747185601278,0.77495996,103880.0,103870.0,1.69446409]
[1747185601676,0.8695491,103880.0,103870.0,0.00192539]
[1747185601971,0.87516981,103880.0,103870.0,0.00192539]
[1747185602166,0.87516981,103880.0,103870.0,0.19446409]
[1747185602371,0.78058067,103880.0,103870.0,0.19446409]
[1747185602571,0.87516981,103880.0,103870.0,0.19446409]
[1747185603076,0.87916981,103880.0,103870.0,0.19446409]
[1747185603277,0.88216981,103880.0,103870.0,0.19446409]
[1747185603580,0.78758067,103880.0,103870.0,0.19446409]
[1747185604181,0.78195996,103880.0,103870.0,0.19446409]
[1747185605091,0.78758067,103880.0,103870.0,0.19446409]
[1747185605785,0.8018533,103880.0,103870.0,0.19446409]
[1747185609980,0.89644244,103880.0,103870.0,0.19446409]
[1747185610380,0.8018533,103880.0,103870.0,0.19446409]
[1747185610975,0.8018533,103880.0,103870.0,0.19472564]
[1747185611189,0.79623259,103880.0,103870.0,0.19472564]
[1747185611490,0.89082173,103880.0,103870.0,0.19472564]
[1747185611786,0.79623259,103880.0,103870.0,0.19472564]
[1747185612491,0.89082173,103880.0,103870.0,0.19472564]
[1747185612687,0.79623259,103880.0,103870.0,0.19472564]
[1747185614383,0.42115996,103880.0,103870.0,0.28931478]
[1747185614582,0.42115996,103880.0,103870.0,0.38061478]
[1747185615299,0.03513976,103880.0,103870.0,0.38061478]
[1747185615485,0.03513976,103880.0,103870.0,1.00069478]
[1747185615685,0.22765996,103880.0,103870.0,1.00069478]
[1747185616294,0.22765996,103880.0,103870.0,1.16269478]
[1747185616991,0.03513976,103880.0,103870.0,1.06810564]
[1747185617187,0.03513976,103880.0,103870.0,1.16269478]
[1747185617390,0.03513976,103880.0,103870.0,2.66269478]
[1747185617584,0.03513976,103880.0,103870.0,2.56810564]
[1747185617790,0.03513976,103880.0,103870.0,2.66269478]
[1747185619186,0.03513976,103880.0,103870.0,2.50069478]
[1747185621689,0.03513976,103880.0,103870.0,2.91319478]
[1747185622395,0.22765996,103880.0,103870.0,2.91319478]
[1747185622695,0.03513976,103880.0,103870.0,2.91319478]
[1747185622992,0.58845996,103880.0,103870.0,2.45772564]
[1747185623197,0.89247927,103880.0,103870.0,1.91468694]
[1747185623494,0.89247927,103880.0,103870.0,0.41468694]
[1747185623694,0.89247927,103880.0,103870.0,0.60722564]
[1747185624397,0.89809998,103880.0,103870.0,0.60722564]
[1747185625189,0.80351084,103880.0,103870.0,0.60722564]
[1747185625792,0.78918067,103880.0,103870.0,0.76781478]
[1747185626000,0.78918067,103880.0,103870.0,0.79901478]
[1747185626302,0.62718067,103880.0,103870.0,0.79901478]
[1747185626502,0.62155996,103880.0,103870.0,0.79901478]
[1747185626698,0.26075996,103880.0,103870.0,0.79901478]
[1747185627103,0.22765996,103880.0,103870.0,1.15981478]
[1747185627399,0.03513976,103880.0,103870.0,0.79901478]
[1747185627706,0.03513976,103880.0,103870.0,1.06522564]
[1747185627894,0.03513976,103880.0,103870.0,1.15981478]
[1747185629199,0.03513976,103880.0,103870.0,1.32181478]
[1747185629507,0.03513976,103880.0,103870.0,2.82181478]
[1747185630107,0.03513976,103880.0,103870.0,2.65981478]
[1747185630511,0.007,103880.0,103870.0,2.65981478]
[1747185631102,0.007,103880.0,103870.0,2.82181478]
[1747185631607,0.0392,103880.0,103870.0,3.08093478]
[1747185633105,0.0392,103880.0,103870.0,2.82434564]
[1747185633310,0.0392,103880.0,103870.0,2.91893478]
[1747185633611,0.04482071,103880.0,103870.0,2.91893478]
[1747185634514,0.0392,103880.0,103870.0,3.01520277]
[1747185635217,0.1924831,103900.0,103890.0,0.1925016]
[1747185635513,0.2246831,103900.0,103890.0,2.04617074]
[1747185635717,0.2246831,103900.0,103890.0,2.10967074]
[1747185636416,0.2256831,103900.0,103890.0,2.11267074]
[1747185636615,0.2572831,103900.0,103890.0,2.14377074]
[1747185637015,0.2582831,103900.0,103890.0,2.14377074]
[1747185637418,0.2582831,103900.0,103890.0,2.0491816]
[1747185637626,0.2582831,103900.0,103890.0,2.14377074]
[1747185638710,0.2260831,103900.0,103890.0,2.14377074]
[1747185638905,0.0336,103900.0,103890.0,2.14377074]
[1747185639120,0.2260831,103900.0,103890.0,2.14377074]
[1747185640414,0.0336,103900.0,103890.0,2.50457074]
[1747185640815,0.0336,103900.0,103890.0,2.59915988]
[1747185641319,0.0336,103900.0,103890.0,2.76115988]
[1747185641519,0.0336,103900.0,103890.0,2.66657074]
[1747185642112,0.0336,103900.0,103890.0,2.50457074]
[1747185644523,0.0336,103900.0,103890.0,2.59915988]
[1747185645114,0.0336,103900.0,103890.0,2.76115988]
[1747185645511,0.0336,103900.0,103890.0,1.26115988]
[1747185645722,0.0336,103900.0,103890.0,1.35741188]
[1747185645912,0.0336,103900.0,103890.0,2.85741188]
[1747185646918,0.0336,103900.0,103890.0,2.5719816]
[1747185647124,0.0336,103900.0,103890.0,2.50457074]
[1747185647325,0.0336,103900.0,103890.0,2.59915988]
[1747185647821,0.0336,103900.0,103890.0,2.4099816]
[1747185648026,0.0336,103900.0,103890.0,2.59915988]
[1747185648630,0.0336,103900.0,103890.0,3.01165988]
[1747185649731,0.02231885,103900.0,103890.0,3.01165988]
[1747185650430,0.0314,103920.0,103910.0,0.1924646]
[1747185650619,0.0314,103920.0,103910.0,0.54593374]
[1747185650820,0.0627,103920.0,103910.0,0.64163374]
[1747185651824,0.6159461,103920.0,103910.0,0.1924646]
[1747185652023,0.6159461,103920.0,103910.0,0.4513046]
[1747185652227,0.7875422,103920.0,103910.0,0.4513046]
[1747185652420,0.7885422,103920.0,103910.0,0.4513046]
[1747185652929,0.8192422,103920.0,103910.0,0.4513046]
[1747185653130,0.8202422,103920.0,103910.0,0.4513046]
[1747185654229,0.91483134,103920.0,103910.0,0.4513046]
[1747185655027,0.8202422,103920.0,103910.0,0.1924646]
[1747185656731,0.6277961,103920.0,103910.0,0.28705374]
[1747185657031,0.8202422,103920.0,103910.0,0.31785374]
[1747185657222,0.8202422,103920.0,103910.0,0.35045374]
[1747185658028,0.6277961,103920.0,103910.0,0.35045374]
[1747185658226,0.6267961,103920.0,103910.0,0.3656793]
[1747185658421,0.6257961,103920.0,103910.0,0.3656793]
[1747185658623,0.2554,103920.0,103910.0,0.35245374]
[1747185658927,0.2554,103920.0,103910.0,0.64371374]
[1747185659121,0.2858461,103920.0,103910.0,0.5491246]
[1747185659319,0.2858461,103920.0,103910.0,0.4532246]
[1747185659523,0.2858461,103920.0,103910.0,1.9532246]
[1747185659833,0.65610179,103920.0,103910.0,1.9532246]
[1747185660139,0.81810179,103920.0,103910.0,1.96744709]
[1747185660731,0.81810179,103920.0,103910.0,1.86427882]
[1747185663335,0.81810179,103920.0,103910.0,1.86327882]
[1747185663533,0.81910179,103920.0,103910.0,1.86327882]
[1747185663730,0.81910179,103920.0,103910.0,1.86227882]
[1747185663928,0.82010179,103920.0,103910.0,1.86227882]
[1747185664929,0.8257225,103920.0,103910.0,1.86227882]
[1747185666635,0.81850242,103920.0,103910.0,1.86227882]
[1747185667727,0.62605632,103920.0,103910.0,1.98736796]
[1747185667927,0.80722108,103920.0,103910.0,1.92587882]
[1747185668140,0.4248,103920.0,103910.0,2.02046796]
[1747185668433,0.064,103920.0,103910.0,2.00624547]
[1747185669034,0.063,103920.0,103910.0,1.91165633]
[1747185669232,0.063,103920.0,103910.0,2.00724547]
[1747185669738,0.062,103920.0,103910.0,2.00824547]
[1747185670225,0.0307,103920.0,103910.0,2.00824547]
[1747185670826,0.063,103920.0,103910.0,2.00824547]
[1747185672631,0.063,103920.0,103910.0,2.42074547]
[1747185673333,0.07324008,103930.0,103920.0,0.1924461]
[1747185673539,0.07324008,103930.0,103920.0,1.09382438]
[1747185673729,0.10634008,103930.0,103920.0,1.09382438]
[1747185673928,0.10634008,103930.0,103920.0,2.59382438]
[1747185674837,0.09750506,103940.0,103930.0,0.1924275]
[1747185675024,0.09750506,103940.0,103930.0,0.97053664]
[1747185675626,0.09750506,103940.0,103930.0,0.8759475]
[1747185675836,0.09750506,103940.0,103930.0,0.97053664]
[1747185676029,0.09850506,103940.0,103930.0,0.97353664]
[1747185676428,0.09850506,103940.0,103930.0,0.97653664]
[1747185676629,0.001,103940.0,103930.0,0.97653664]
[1747185676824,0.002,103960.0,103950.0,0.1923905]
[1747185677030,0.002,103960.0,103950.0,0.96769964]
[1747185677328,0.035,103960.0,103950.0,0.99999964]
[1747185677938,0.0656,103960.0,103950.0,0.99999964]
[1747185678238,0.0676,103960.0,103950.0,0.99999964]
[1747185678941,0.0686,103960.0,103950.0,0.99999964]
[1747185679331,0.0686,103960.0,103950.0,2.49999964]
[1747185679732,0.005,103960.0,103950.0,2.59458878]
[1747185679925,0.15910506,103970.0,103960.0,0.192372]
[1747185680127,0.15910506,103970.0,103960.0,0.71226114]
[1747185680128,0.12810506,103970.0,103960.0,0.71226114]
[1747185680336,0.12810506,103970.0,103960.0,0.97082114]
[1747185680634,0.12288133,103980.0,103970.0,0.1923535]
[1747185680833,0.12288133,103980.0,103970.0,1.00304264]
[1747185681335,0.28488133,103980.0,103970.0,1.00304264]
[1747185681641,0.163,103980.0,103970.0,1.00304264]
[1747185682036,0.09760413,103990.0,103980.0,0.192335]
[1747185682240,0.09760413,103990.0,103980.0,1.07811636]
[1747185683239,0.09960413,103990.0,103980.0,1.08711636]
[1747185684140,0.26160413,103990.0,103980.0,1.08711636]
[1747185684934,0.37013893,104000.0,103990.0,0.1923165]
[1747185685145,0.37013893,104000.0,103990.0,1.00002564]
[1747185686239,0.265,104000.0,103990.0,1.00402564]
[1747185686440,0.296,104000.0,103990.0,1.00702564]
[1747185686646,0.265,104000.0,103990.0,1.00702564]
[1747185687142,0.103,104000.0,103990.0,1.00702564]
[1747185689546,0.0329,104010.0,104000.0,0.192298]
[1747185689747,0.0329,104010.0,104000.0,0.96932714]
[1747185690046,0.4243,104010.0,104000.0,0.86668714]
[1747185690236,0.7785795,104010.0,104000.0,0.86668714]
[1747185690442,0.7785795,104010.0,104000.0,2.36668714]
[1747185690639,0.7785795,104010.0,104000.0,1.755498]
[1747185690837,0.5863,104010.0,104000.0,1.724998]
[1747185691052,0.7785795,104010.0,104000.0,1.85048714]
[1747185691238,0.7785795,104010.0,104000.0,1.694298]
[1747185692155,0.7785795,104010.0,104000.0,1.695298]
[1747185692447,0.7785795,104010.0,104000.0,1.78988714]
[1747185692649,0.7785795,104010.0,104000.0,1.82128714]
[1747185693034,0.7785795,104010.0,104000.0,1.695298]
[1747185694334,0.7785795,104010.0,104000.0,0.003]
[1747185694335,1.22493735,104010.0,104000.0,0.003]
[1747185694546,0.192298,104000.0,103990.0,0.16863034]
[1747185694840,0.616998,104000.0,103990.0,1.76478714]
[1747185695145,0.90368714,104000.0,103990.0,1.62055344]
[1747185695339,0.1923165,103990.0,103980.0,0.3365674]
[1747185695541,0.6159165,103990.0,103980.0,0.3365674]
[1747185695940,0.6159165,103990.0,103980.0,1.8365674]
[1747185696150,0.7779165,103990.0,103980.0,1.8365674]
[1747185697151,0.7779165,103990.0,103980.0,1.8375674]
[1747185697447,0.5856,103990.0,103980.0,1.8375674]
[1747185697640,0.7779165,103990.0,103980.0,1.8395674]
[1747185698742,0.7779165,103990.0,103980.0,1.8700674]
[1747185700147,0.87250564,103990.0,103980.0,1.503]
[1747185700335,0.87250564,103990.0,103980.0,0.003]
[1747185700541,0.96867364,103990.0,103980.0,0.003]
[1747185701144,0.96867364,103990.0,103980.0,0.195335]
[1747185701444,0.96867364,103990.0,103980.0,0.003]
[1747185701845,0.0961822,103970.0,103950.0,0.45171647]
[1747185702041,0.3929,103960.0,103950.0,0.72488597]
[1747185702241,0.4574,103960.0,103950.0,0.81947511]
[1747185702448,0.4574,103960.0,103950.0,2.35157511]
[1747185703351,0.066,103960.0,103950.0,2.08641511]
[1747185703555,0.0339,103960.0,103950.0,2.55604189]
[1747185703742,0.001,103960.0,103950.0,2.55604189]
[1747185704050,0.001,103960.0,103950.0,2.83148189]
[1747185704643,0.002,103960.0,103950.0,2.47268189]
[1747185704844,0.3628,103960.0,103950.0,2.09341511]
[1747185705044,0.260172,103960.0,103950.0,1.90104651]
[1747185705248,0.812972,103960.0,103950.0,1.74145737]
[1747185705444,0.812972,103960.0,103950.0,1.70875737]
[1747185706141,0.90756114,103960.0,103950.0,1.70875737]
[1747185706344,0.812972,103960.0,103950.0,1.70875737]
[1747185706946,0.812972,103960.0,103950.0,0.20875737]
[1747185707854,0.90756114,103960.0,103950.0,0.01636687]
[1747185708155,0.812972,103960.0,103950.0,0.20875737]
[1747185709458,0.812972,103960.0,103950.0,0.33624651]
[1747185709753,0.812972,103960.0,103950.0,0.36714651]
[1747185710146,0.650972,103960.0,103950.0,0.36714651]
[1747185710755,0.650972,103960.0,103950.0,0.27255737]
[1747185711054,0.812972,103960.0,103950.0,0.27255737]
[1747185712857,0.812972,103960.0,103950.0,0.36714651]
[1747185713950,0.90756114,103960.0,103950.0,0.24165737]
[1747185714153,0.90756114,103960.0,103950.0,0.01636687]
[1747185714746,1.00937785,103960.0,103950.0,0.01636687]
[1747185715255,1.27605785,103960.0,103950.0,0.20875737]
[1747185715556,1.27605785,103960.0,103950.0,0.20731441]
[1747185715752,1.27605785,103960.0,103950.0,0.01492391]
[1747185715958,1.27605785,103960.0,103950.0,0.20731441]
[1747185720655,1.08863271,103960.0,103950.0,0.23981441]
[1747185720854,1.083012,103960.0,103950.0,0.23981441]
[1747185722156,1.083012,103960.0,103950.0,0.27191441]
[1747185722659,0.750072,103960.0,103950.0,0.36650355]
[1747185722961,0.750072,103960.0,103950.0,0.39860355]
[1747185723162,0.588072,103960.0,103950.0,0.39860355]
[1747185723552,0.588072,103960.0,103950.0,0.30401441]
[1747185723847,0.002,103960.0,103950.0,0.49319269]
[1747185724050,0.002,103960.0,103950.0,0.75940355]
[1747185724348,0.002,103960.0,103950.0,2.25940355]
[1747185725453,0.002,103960.0,103950.0,2.16481441]
[1747185725661,0.6329421,103970.0,103960.0,0.192372]
[1747185725860,0.64409905,103980.0,103970.0,0.1923535]
[1747185726061,0.67579905,103980.0,103970.0,0.2892535]
[1747185726459,0.67579905,103980.0,103970.0,0.38384264]
[1747185727165,0.67579905,103980.0,103970.0,0.2892535]
[1747185727558,0.192372,103960.0,103950.0,1.80349441]
[1747185727758,0.553172,103960.0,103950.0,2.13009441]
[1747185728065,0.55879271,103960.0,103950.0,2.21868355]
[1747185728257,0.55879271,103960.0,103950.0,2.21168355]
[1747185728860,0.584572,103960.0,103950.0,2.25078355]
[1747185729168,0.585572,103960.0,103950.0,2.25778355]
[1747185729365,0.585572,103960.0,103950.0,2.16319441]
[1747185729565,0.616772,103960.0,103950.0,2.16319441]
[1747185729869,0.62239271,103960.0,103950.0,2.16319441]
[1747185730270,0.62239271,103960.0,103950.0,1.87426391]
[1747185730453,0.62239271,103960.0,103950.0,2.06665441]
[1747185731054,0.71698185,103960.0,103950.0,0.04802391]
[1747185731254,0.87898185,103960.0,103950.0,0.01492391]
[1747185731768,0.78439271,103960.0,103950.0,0.20731441]
[1747185731966,0.778772,103960.0,103950.0,0.04722391]
[1747185732161,0.778772,103960.0,103950.0,0.01492391]
[1747185732363,0.87336114,103960.0,103950.0,0.01492391]
[1747185733057,0.87898185,103960.0,103950.0,0.01492391]
[1747185734063,0.87336114,103960.0,103950.0,0.01492391]
[1747185735072,0.87898185,103960.0,103950.0,0.01492391]
[1747185735370,0.87898185,103960.0,103950.0,0.00892391]
[1747185735767,0.87798185,103960.0,103950.0,0.00192391]
[1747185735967,0.87898185,103960.0,103950.0,0.00192391]
[1747185736168,0.78439271,103960.0,103950.0,0.00192391]
[1747185736362,0.87898185,103960.0,103950.0,0.00192391]
[1747185737373,0.97517785,103960.0,103950.0,0.00192391]
[1747185739666,0.87898185,103960.0,103950.0,0.00192391]
[1747185740775,1.31976699,103960.0,103950.0,1e-08]
[1747185743190,1.31414628,103960.0,103950.0,1e-08]
[1747185744184,2.41104699,103960.0,103950.0,1e-08]
[1747185744392,0.1924275,103930.0,103920.0,0.3006415]
[1747185744582,1.00861664,103930.0,103920.0,0.3006415]
[1747185744783,1.10301664,103930.0,103920.0,0.3006415]
[1747185745490,1.10401664,103930.0,103920.0,0.3056415]
[1747185745692,1.10401664,103930.0,103920.0,0.0651]
[1747185745894,1.10501664,103930.0,103920.0,0.0401]
[1747185746192,1.26701664,103930.0,103920.0,0.2325461]
[1747185747088,1.1724275,103930.0,103920.0,0.2325461]
[1747185747392,1.26701664,103930.0,103920.0,0.2634461]
[1747185748291,1.10501664,103930.0,103920.0,0.2634461]
[1747185749288,1.26701664,103930.0,103920.0,0.2634461]
[1747185750289,1.10501664,103930.0,103920.0,0.2634461]
[1747185750891,1.0104275,103930.0,103920.0,0.2634461]
[1747185751993,1.10501664,103930.0,103920.0,0.2634461]
[1747185752793,1.0104275,103930.0,103920.0,0.2634461]
[1747185753391,0.9801275,103930.0,103920.0,0.2634461]
[1747185753793,1.07471664,103930.0,103920.0,0.2634461]
[1747185753986,1.07471664,103930.0,103920.0,0.071]
[1747185754186,1.23671664,103930.0,103920.0,0.0401]
[1747185754591,1.23671664,103930.0,103920.0,0.01]
[1747185754787,1.42752978,103930.0,103920.0,0.02422633]
[1747185754986,1.33294064,103930.0,103920.0,0.02422633]
[1747185755183,0.1924461,103920.0,103910.0,0.00192465]
[1747185755389,0.99987524,103920.0,103910.0,0.00192465]
[1747185756292,1.16187524,103920.0,103910.0,0.00192465]
[1747185756899,1.17618139,103920.0,103910.0,0.00192465]
[1747185757297,1.43522139,103920.0,103910.0,0.00192465]
[1747185757598,1.43622139,103920.0,103910.0,0.00492465]
[1747185757799,1.43722139,103920.0,103910.0,0.00992465]
[1747185758199,1.43722139,103920.0,103910.0,0.20238925]
[1747185758401,0.5548,103920.0,103910.0,0.23558925]
[1747185758597,0.3564461,103920.0,103910.0,0.36317839]
[1747185758903,0.7172461,103920.0,103910.0,0.26858925]
[1747185759090,0.5552461,103920.0,103910.0,0.43058925]
[1747185760095,0.5552461,103920.0,103910.0,0.52517839]
[1747185760793,0.5552461,103920.0,103910.0,2.02517839]
[1747185761103,0.5552461,103920.0,103910.0,1.76858925]
[1747185765002,0.5877461,103920.0,103910.0,1.76858925]
[1747185765204,0.6184461,103920.0,103910.0,1.76858925]
[1747185766102,0.71303524,103920.0,103910.0,0.26858925]
[1747185766500,0.74333524,103920.0,103910.0,0.26858925]
[1747185767207,0.90533524,103920.0,103910.0,0.26858925]
[1747185767613,0.90533524,103920.0,103910.0,0.04312465]
[1747185769009,1.16441524,103920.0,103910.0,0.04312465]
[1747185769312,1.16441524,103920.0,103910.0,0.05749184]
[1747185772208,1.00241524,103920.0,103910.0,0.05749184]
[1747185772410,1.00241524,103920.0,103910.0,0.05752763]
[1747185773213,1.16441524,103920.0,103910.0,0.05752763]
[1747185773411,1.0698261,103920.0,103910.0,0.05773098]
[1747185773614,1.16441524,103920.0,103910.0,0.08853098]
[1747185774306,1.16441524,103920.0,103910.0,0.02453098]
[1747185774608,1.51796438,103920.0,103910.0,0.02453098]
[1747185774909,1.61419638,103920.0,103910.0,0.010128]
[1747185775110,0.1924831,103900.0,103890.0,0.00096251]
[1747185775315,1.26775224,103900.0,103890.0,0.00096251]
[1747185775514,1.62251224,103900.0,103890.0,0.00096251]
[1747185776115,1.78451224,103900.0,103890.0,0.00096251]
[1747185776418,1.78551224,103900.0,103890.0,0.00196251]
[1747185777007,1.78651224,103900.0,103890.0,0.00196251]
[1747185777202,1.78751224,103900.0,103890.0,0.00296251]
[1747185777414,1.78751224,103900.0,103890.0,0.03556251]
[1747185778115,1.62551224,103900.0,103890.0,0.05033184]
[1747185778304,1.63527201,103900.0,103890.0,0.05033184]
[1747185779118,1.79727201,103900.0,103890.0,0.05033184]
[1747185779815,1.70268287,103900.0,103890.0,0.05033184]
[1747185780025,1.18464287,103900.0,103890.0,0.24283344]
[1747185780319,1.28176287,103900.0,103890.0,0.08093184]
[1747185780512,1.37635201,103900.0,103890.0,0.08093184]
[1747185781221,1.11723201,103900.0,103890.0,0.27343344]
[1747185781523,0.98964287,103900.0,103890.0,0.27343344]
[1747185781722,0.98964287,103900.0,103890.0,0.36802258]
[1747185781723,0.92684287,103900.0,103890.0,0.36802258]
[1747185782127,0.92684287,103900.0,103890.0,0.53002258]
[1747185782515,0.9170831,103900.0,103890.0,0.53002258]
[1747185783217,0.9170831,103900.0,103890.0,2.70144258]
[1747185784321,0.7246,103900.0,103890.0,2.70144258]
[1747185784520,0.003,103900.0,103890.0,3.09058372]
[1747185784714,0.003,103900.0,103890.0,2.98122525]
[1747185785117,0.003,103900.0,103890.0,3.07581439]
[1747185785421,0.6013957,103910.0,103900.0,0.1924831]
[1747185785620,0.6013957,103910.0,103900.0,0.38307224]
[1747185786027,0.3608,103910.0,103900.0,0.38307224]
[1747185786318,0.6013655,103920.0,103910.0,0.1924646]
[1747185786524,0.6013655,103920.0,103910.0,0.2552646]
[1747185786525,0.6319655,103920.0,103910.0,0.2552646]
[1747185787113,0.6319655,103920.0,103910.0,0.4172646]
[1747185787728,0.6359655,103920.0,103910.0,0.4182646]
[1747185788027,0.6409655,103920.0,103910.0,0.4182646]
[1747185788228,0.009,103920.0,103910.0,0.77169374]
[1747185788521,0.2014461,103920.0,103910.0,0.6771046]
[1747185788727,0.1964461,103920.0,103910.0,2.1771046]
[1747185789025,0.5907461,103920.0,103910.0,2.1771046]
[1747185789230,0.6211461,103920.0,103910.0,2.1771046]
[1747185789926,0.2603461,103920.0,103910.0,2.1771046]
[1747185792132,0.2240104,103940.0,103930.0,0.1924275]
[1747185792319,0.1924275,103930.0,103920.0,0.3339357]
[1747185792629,0.71071664,103930.0,103920.0,0.3339357]
[1747185793028,0.6161275,103930.0,103920.0,0.3339357]
[1747185793730,0.6161275,103930.0,103920.0,0.3349357]
[1747185793931,0.65687491,103930.0,103920.0,0.3349357]
[1747185794132,0.65687491,103930.0,103920.0,1.8349357]
[1747185795027,0.75146405,103930.0,103920.0,1.8349357]
[1747185795431,0.37064741,103930.0,103920.0,1.92952484]
[1747185795735,0.59527491,103930.0,103920.0,1.92952484]
[1747185795927,0.5854192,103940.0,103930.0,0.1924275]
[1747185796231,0.585409,103940.0,103930.0,0.34891664]
[1747185796432,0.12788762,103950.0,103940.0,0.192409]
[1747185796728,0.29007812,103950.0,103940.0,0.38089814]
[1747185797133,0.2244905,103950.0,103940.0,0.54289814]
[1747185797525,0.5852905,103950.0,103940.0,0.54289814]
[1747185797726,0.5852905,103950.0,103940.0,0.448309]
[1747185798024,0.6187905,103950.0,103940.0,0.448309]
[1747185798231,0.6187905,103950.0,103940.0,0.286309]
[1747185798435,0.6187905,103950.0,103940.0,0.287309]
[1747185798827,0.5862905,103950.0,103940.0,0.287309]
[1747185799241,0.001,103950.0,103940.0,0.99928728]
[1747185799427,0.001,103950.0,103940.0,1.50954214]
[1747185799621,0.001,103950.0,103940.0,3.00954214]
[1747185800233,0.29205962,103960.0,103950.0,0.1923905]
[1747185800431,0.65285962,103960.0,103950.0,0.2567905]
[1747185800627,0.81134876,103960.0,103950.0,0.2567905]
[1747185801035,0.1923905,103950.0,103940.0,2.2903314]
[1747185801334,0.6496905,103950.0,103940.0,2.1917314]
[1747185801634,0.6496905,103950.0,103940.0,0.6917314]
[1747185801830,0.74427964,103950.0,103940.0,0.0648]
[1747185802030,0.74427964,103950.0,103940.0,0.257209]
[1747185802231,0.192409,103940.0,103930.0,1.8202219]
[1747185802434,0.71169814,103940.0,103930.0,0.0328]
[1747185802731,0.71169814,103940.0,103930.0,0.2252275]
[1747185803327,0.87369814,103940.0,103930.0,0.2252275]
[1747185803527,0.779109,103940.0,103930.0,0.2252275]
[1747185803732,0.1924275,103930.0,103920.0,1.8053413]